bitfinex/quotes_ETHUSD_20251006
["timestamp","ask_amount","ask_price","bid_price","bid_amount"]
[1759740124544,5.12430937,4561.4,4561.3,1.28816472]
[1759740125403,2.479,4561.4,4561.3,1.28816472]
[1759740125603,0.0012,4561.6,4561.3,1.28816472]
[1759740125604,2.19226131,4561.5,4561.3,1.28816472]
[1759740125918,2.19226131,4561.5,4561.4,0.02192309]
[1759740126244,2.479,4561.5,4561.4,1.17756472]
[1759740126416,2.19342101,4561.6,4561.4,1.17756472]
[1759740126417,0.0012,4561.6,4561.4,0.35713187]
[1759740126605,2.479,4561.5,4561.4,0.56606855]
[1759740126929,2.479,4561.5,4561.4,0.54414546]
[1759740127522,2.479,4561.5,4561.4,0.24060878]
[1759740131929,0.0012,4561.6,4561.4,0.24060878]
[1759740131930,0.0012,4561.6,4561.5,2.19226131]
[1759740132130,0.0012,4561.6,4561.5,5.23379316]
[1759740132329,0.0012,4561.6,4561.5,25.73379316]
[1759740133232,0.0004,4561.6,4561.5,27.69953077]
[1759740133438,0.0004,4561.6,4561.5,25.73379316]
[1759740134340,0.0004,4561.6,4561.5,26.75887277]
[1759740136533,0.002,4561.7,4561.6,4.59221325]
[1759740136718,0.002,4561.7,4561.6,32.36256323]
[1759740136916,0.002,4561.7,4561.6,30.39731472]
[1759740137122,0.002,4561.7,4561.6,31.03091472]
[1759740137317,0.002,4562.0,4561.9,2.82566909]
[1759740137543,0.002,4562.0,4561.9,28.89919944]
[1759740137846,0.002,4562.0,4561.9,31.14037056]
[1759740138050,0.002,4562.0,4561.9,31.22805149]
[1759740138833,0.002,4562.0,4561.9,33.19136523]
[1759740140235,0.002,4562.0,4561.9,31.22805149]
[1759740141149,0.002,4562.0,4561.9,31.13345149]
[1759740141329,0.002,4562.1,4562.0,5.50775109]
[1759740141530,0.002,4562.1,4562.0,8.05272251]
[1759740142252,0.002,4563.1,4562.0,8.05272251]
[1759740142253,1e-08,4562.7,4562.3,0.6336]
[1759740142438,0.002,4563.1,4563.0,2.19154065]
[1759740142640,0.002,4563.1,4563.0,7.09045605]
[1759740142966,0.002,4563.1,4563.0,8.23674729]
[1759740143365,0.002,4563.1,4563.0,9.80398188]
[1759740144168,0.002,4563.1,4563.0,24.30398188]
[1759740144674,0.002,4563.1,4563.0,24.93758188]
[1759740144838,0.002,4563.1,4563.0,25.50159154]
[1759740145037,0.002,4563.1,4563.0,25.58924999]
[1759740146268,0.002,4563.1,4563.0,24.0220154]
[1759740147159,0.002,4563.7,4563.2,2.8250446]
[1759740147366,0.002,4563.7,4563.6,4.59125251]
[1759740147543,0.002,4563.7,4563.6,7.06725251]
[1759740147737,0.002,4563.7,4563.6,21.56725251]
[1759740147944,0.4427,4564.9,4563.7,3.0336]
[1759740148271,0.4427,4564.9,4564.8,5.37313247]
[1759740148478,0.4427,4564.9,4564.8,6.24688873]
[1759740148639,0.4427,4564.9,4564.8,20.74688873]
[1759740149175,0.4427,4564.9,4564.8,17.77375626]
[1759740149342,0.4427,4564.9,4564.8,18.5554441]
[1759740150242,0.4427,4564.9,4564.8,17.77375626]
[1759740150667,0.4427,4564.9,4564.8,17.88469742]
[1759740151346,0.4447,4564.9,4564.8,17.88469742]
[1759740152263,0.4447,4564.9,4564.8,17.99429742]
[1759740155257,0.4447,4564.9,4564.8,17.12054116]
[1759740155461,2.63532849,4564.9,4564.8,0.22054116]
[1759740155646,2.63532849,4564.9,4564.8,0.1096]
[1759740156051,5.11032849,4564.9,4564.8,0.1096]
[1759740157664,5.10952849,4564.9,4564.8,0.1096]
[1759740158983,0.4439,4564.9,4564.8,0.1096]
[1759740159149,0.002,4564.9,4564.8,0.13150676]
[1759740159353,0.002,4564.9,4564.8,14.63150676]
[1759740159605,0.002,4564.9,4564.8,0.1096]
[1759740159882,0.002,4564.9,4563.8,0.28187961]
[1759740159883,0.432,4564.9,4564.7,0.02190724]
[1759740160059,0.43,4564.8,4564.7,0.02190724]
[1759740160376,2.904,4564.8,4564.6,0.60876135]
[1759740160551,0.43,4564.7,4564.6,0.60876135]
[1759740160750,0.43,4564.7,4564.6,0.02190772]
[1759740160961,0.43,4564.7,4564.6,0.60907014]
[1759740161284,0.43,4564.7,4564.6,0.02190772]
[1759740161593,2.62072447,4564.7,4564.5,0.10979146]
[1759740161891,0.43,4564.6,4564.4,0.78168784]
[1759740162184,0.43,4564.5,4564.4,0.10950379]
[1759740162390,2.62082046,4564.5,4564.4,0.78168784]
[1759740162571,0.43,4564.5,4564.4,0.78168784]
[1759740162974,2.62082046,4564.5,4564.4,0.78168784]
[1759740163487,2.62082046,4564.5,4564.4,0.11053736]
[1759740163787,2.474,4564.6,4564.3,2.4]
[1759740163959,2.904,4564.6,4564.5,0.78391587]
[1759740164482,2.904,4564.6,4564.1,0.78391587]
[1759740164652,2.62082046,4564.5,4564.4,0.58819226]
[1759740165276,2.19088941,4564.4,4564.1,0.89340867]
[1759740165489,0.43,4564.4,4564.1,0.89340867]
[1759740165687,2.904,4564.3,4564.2,0.80582551]
[1759740165889,2.904,4564.3,4564.1,0.89340867]
[1759740166190,2.62096446,4564.2,4564.1,0.89340867]
[1759740166488,2.62096446,4564.2,4564.1,0.1094928]
[1759740166659,2.19104412,4564.1,4563.9,3.57368399]
[1759740166861,0.43,4564.0,4563.9,3.57368399]
[1759740167988,0.43,4564.0,4563.9,3.68316579]
[1759740168498,0.43,4564.0,4563.9,2.5094818]
[1759740168993,2.904,4564.0,4563.9,2.5094818]
[1759740169660,5.09506047,4564.0,4563.9,2.6190818]
[1759740170092,5.09506047,4564.0,4563.9,0.2200818]
[1759740170294,5.09506047,4564.0,4563.9,1.39856504]
[1759740170664,5.09506047,4564.0,4563.9,0.2200818]
[1759740171317,5.09506047,4564.0,4563.9,1.39856504]
[1759740171969,2.473,4564.0,4563.9,1.39856504]
[1759740172169,5.09406047,4564.0,4563.9,0.2200818]
[1759740172695,2.903,4564.0,4563.9,0.2200818]
[1759740173467,5.09406047,4564.0,4563.9,0.2200818]
[1759740173668,2.903,4564.0,4563.9,0.2200818]
[1759740173873,2.19086915,4564.4,4563.9,0.2200818]
[1759740174202,4.66395844,4564.3,4564.1,1.17917791]
[1759740174392,2.19096446,4564.2,4564.1,1.17917791]
[1759740174578,2.62096446,4564.2,4564.1,1.17917791]
[1759740175368,0.43,4564.2,4564.1,1.17917791]
[1759740175876,2.62096446,4564.2,4564.1,1.17917791]
[1759740176073,0.1096,4564.7,4564.1,1.17917791]
[1759740176272,4.66381866,4564.6,4564.5,0.78606381]
[1759740176579,5.09381866,4564.6,4564.3,14.5]
[1759740176783,4.66381866,4564.6,4564.5,0.78604904]
[1759740176986,2.473,4564.6,4564.5,0.78604904]
[1759740177188,4.66377246,4564.6,4564.5,0.78604904]
[1759740177390,2.903,4564.6,4564.5,0.78604904]
[1759740177573,5.09377246,4564.6,4564.5,0.78604904]
[1759740177902,4.66380814,4564.6,4564.3,15.78877791]
[1759740178070,2.19080814,4564.6,4564.3,15.78877791]
[1759740178400,2.473,4564.5,4564.3,15.78877791]
[1759740178573,2.473,4564.4,4564.3,15.78877791]
[1759740179465,2.473,4564.4,4564.3,14.6096]
[1759740179665,2.473,4564.4,4564.3,15.78877791]
[1759740181301,2.473,4564.4,4564.3,14.6096]
[1759740181712,0.432,4564.9,4564.3,14.6096]
[1759740182007,0.002,4564.9,4564.8,2.19067648]
[1759740182169,0.0012,4564.9,4564.8,0.1096]
[1759740182504,0.0012,4564.9,4564.8,2.30027648]
[1759740182670,0.0012,4564.9,4564.8,5.54587669]
[1759740183407,0.0012,4564.9,4564.8,20.04587669]
[1759740184280,0.0012,4564.9,4564.8,17.85520021]
[1759740184676,2.62052849,4564.9,4564.8,14.6096]
[1759740185005,0.4299,4564.9,4564.8,14.6096]
[1759740185300,2.62052849,4564.9,4564.8,15.78917404]
[1759740186609,0.4299,4564.9,4564.8,15.78917404]
[1759740186907,0.4299,4564.9,4564.8,1.28917404]
[1759740187100,2.62052849,4564.9,4564.8,1.28917404]
[1759740188496,0.4299,4564.9,4564.8,1.28917404]
[1759740188698,2.62052849,4564.9,4564.8,1.28917404]
[1759740188923,2.19067648,4564.8,4564.7,1.17957404]
[1759740189097,2.19182849,4564.9,4564.6,1.28917404]
[1759740189405,2.19072447,4564.7,4564.6,0.1096]
[1759740189609,4.66372447,4564.7,4564.6,0.1096]
[1759740189813,5.09242447,4564.7,4564.6,0.1096]
[1759740190510,2.473,4564.7,4564.6,0.1096]
[1759740190813,2.9017,4564.7,4564.6,0.1096]
[1759740190997,5.09242447,4564.7,4564.6,0.1096]
[1759740196400,2.19082046,4564.5,4564.4,1.17957404]
[1759740196601,4.66382046,4564.5,4564.4,1.17957404]
[1759740196790,5.09252046,4564.5,4564.4,1.17957404]
[1759740201215,2.19086846,4564.4,4564.3,3.57957404]
[1759740202327,2.19086846,4564.4,4564.3,2.4]
[1759740203520,2.19086846,4564.4,4564.2,0.1096]
[1759740203699,2.473,4564.3,4564.2,0.1096]
[1759740203899,2.473,4564.3,4564.2,17.0096]
[1759740204214,4.66391646,4564.3,4564.2,17.0096]
[1759740204421,2.473,4564.3,4564.2,17.0096]
[1759740205110,4.66391646,4564.3,4564.2,17.0096]
[1759740205325,5.09261646,4564.3,4564.2,17.0096]
[1759740206014,2.61961646,4564.3,4564.2,17.0096]
[1759740206219,5.09261646,4564.3,4564.2,17.0096]
[1759740206531,5.09181646,4564.3,4564.2,17.0096]
[1759740206922,5.09181646,4564.3,4564.2,3.69000845]
[1759740208132,2.473,4564.3,4564.2,2.5096]
[1759740208300,0.1108,4564.9,4564.3,2.4]
[1759740208501,0.0012,4564.9,4564.8,0.78683683]
[1759740208918,2.19182849,4564.9,4564.8,0.78683683]
[1759740209099,4.66482849,4564.9,4564.8,0.78683683]
[1759740209501,2.4742,4564.9,4564.8,0.78683683]
[1759740209712,4.66482849,4564.9,4564.8,0.78683683]
[1759740210121,2.4742,4564.9,4564.8,0.89643683]
[1759740210324,4.66482849,4564.9,4564.8,0.1096]
[1759740211134,4.66482849,4564.9,4564.8,17.0096]
[1759740213962,5.10132849,4564.9,4564.8,17.0096]
[1759740214323,5.10132849,4564.9,4564.8,18.18985525]
[1759740214728,5.10132849,4564.9,4564.8,3.68985525]
[1759740215436,5.10132849,4564.9,4564.8,3.58025525]
[1759740216010,2.9107,4564.9,4564.8,3.58025525]
[1759740216210,5.10132849,4564.9,4564.8,1.18025525]
[1759740216410,5.10132849,4564.9,4564.4,2.5096]
[1759740216411,2.19067648,4564.8,4564.7,1.18025525]
[1759740216712,2.66287648,4564.8,4564.7,1.18025525]
[1759740217738,2.66287648,4564.8,4564.6,1.18025525]
[1759740217739,2.19072447,4564.7,4564.6,1.18025525]
[1759740218044,2.19077246,4564.6,4564.5,1.18025525]
[1759740218245,2.66297246,4564.6,4564.5,1.18025525]
[1759740218559,0.0012,4564.9,4564.5,1.18025525]
[1759740218856,0.0012,4564.9,4563.9,4.07539379]
[1759740218857,2.19072447,4564.7,4564.6,1.18167993]
[1759740219146,2.66292447,4564.7,4564.6,1.18167993]
[1759740219654,5.13592447,4564.7,4564.6,1.18167993]
[1759740220154,2.19077246,4564.6,4564.5,1.18167993]
[1759740220343,2.66297246,4564.6,4564.5,1.18167993]
[1759740220859,0.65751767,4564.8,4564.3,0.001]
[1759740221026,2.473,4564.7,4564.3,0.4929912]
[1759740221348,2.473,4564.6,4564.4,0.02190868]
[1759740221518,2.473,4564.5,4564.4,0.02190868]
[1759740221719,2.19071199,4564.8,4564.3,0.41950036]
[1759740221930,2.19071199,4564.8,4564.7,1.18168604]
[1759740222127,4.66371199,4564.8,4564.7,1.18168604]
[1759740222648,2.19071199,4564.8,4564.7,1.18168604]
[1759740222842,4.66371199,4564.8,4564.7,1.18168604]
[1759740223740,2.19072447,4564.7,4564.6,1.18168604]
[1759740224743,4.66372447,4564.7,4564.6,1.18168604]
[1759740225137,2.473,4564.7,4564.0,1.56491199]
[1759740225324,2.19086264,4564.5,4564.0,1.56491199]
[1759740225642,2.473,4564.4,4564.0,1.56491199]
[1759740225849,2.473,4564.3,4564.1,0.3867513]
[1759740226053,2.1907167,4564.8,4564.1,0.3867513]
[1759740226230,2.473,4564.7,4564.1,0.0954]
[1759740226551,4.66373197,4564.7,4564.1,0.0954]
[1759740227819,4.66373197,4564.7,4564.5,0.1096]
[1759740228166,2.473,4564.7,4564.5,0.1096]
[1759740228451,2.473,4564.6,4564.5,0.1096]
[1759740229223,0.0012,4564.9,4564.5,0.1096]
[1759740229435,2.473,4564.8,4564.5,0.1096]
[1759740230540,2.9452,4564.8,4564.5,0.1096]
[1759740230941,5.13588956,4564.8,4564.5,0.1096]
[1759740231142,5.13508956,4564.8,4564.5,0.1096]
[1759740231834,2.473,4564.7,4564.5,0.1096]
[1759740232030,4.66373859,4564.7,4564.5,0.1096]
[1759740232245,5.13593859,4564.7,4564.5,0.1096]
[1759740233370,2.473,4564.7,4564.5,0.1096]
[1759740233969,2.473,4564.7,4564.6,0.02190772]
[1759740234155,2.473,4564.7,4564.5,0.1096]
[1759740234852,2.9452,4564.7,4564.5,0.1096]
[1759740235572,5.13593519,4564.7,4564.5,0.1096]
[1759740236054,0.4722,4564.6,4564.5,0.1096]
[1759740237869,2.66297246,4564.6,4564.5,0.1096]
[1759740238669,2.19077246,4564.6,4564.5,0.1106]
[1759740238865,2.66297246,4564.6,4564.5,0.1106]
[1759740239080,5.13497246,4564.6,4564.5,0.1106]
[1759740240256,5.13497246,4564.6,4564.5,0.001]
[1759740240878,5.13497246,4564.6,4564.5,0.78899874]
[1759740241180,5.13497246,4564.6,4564.0,0.001]
[1759740241181,2.19101246,4564.1,4564.0,0.001]
[1759740241380,4.77261246,4564.1,4564.0,0.001]
[1759740241584,5.24481246,4564.1,4564.0,0.001]
[1759740241953,5.33249608,4564.1,4564.0,0.001]
[1759740245770,5.33349608,4564.1,4564.0,0.001]
[1759740246160,5.33349608,4564.1,4564.0,0.59108327]
[1759740246985,2.86049608,4564.1,4564.0,0.59108327]
[1759740247295,5.33349608,4564.1,4564.0,0.59108327]
[1759740247661,5.33349608,4564.1,4564.0,0.001]
[1759740250807,5.96709608,4564.1,4564.0,0.001]
[1759740251679,9.10788482,4564.1,4564.0,0.001]
[1759740253691,9.10788482,4564.1,4563.3,0.001]
[1759740253692,2.19134855,4563.4,4563.3,0.001]
[1759740254101,4.66434855,4563.4,4563.3,0.001]
[1759740254778,5.25443182,4563.4,4563.3,0.001]
[1759740254968,0.59008327,4563.4,4563.3,0.001]
[1759740255167,2.473,4563.4,4563.3,0.001]
[1759740255387,2.1913404,4563.5,4563.3,0.001]
[1759740255570,2.1905404,4563.5,4563.4,0.58863245]
[1759740255766,4.6635404,4563.5,4563.4,0.0974]
[1759740256076,4.6635404,4563.5,4563.3,0.001]
[1759740256492,2.19134855,4563.4,4563.3,0.001]
[1759740257767,4.66434855,4563.4,4563.3,0.001]
[1759740258099,2.0287715,4563.4,4563.3,0.001]
[1759740258400,4.5017715,4563.4,4563.3,0.001]
[1759740258774,2.0287715,4563.4,4563.3,0.001]
[1759740258974,4.5017715,4563.4,4563.3,0.001]
[1759740260086,4.9408715,4563.4,4563.3,0.001]
[1759740260286,4.5017715,4563.4,4563.3,0.001]
[1759740261789,4.5017715,4563.4,4563.3,2.401]
[1759740262500,4.9408715,4563.4,4563.3,2.401]
[1759740262803,4.5017715,4563.4,4563.3,2.401]
[1759740263009,4.9408715,4563.4,4563.3,0.58994727]
[1759740263194,4.9408715,4563.4,4563.3,0.001]
[1759740263706,5.0504715,4563.4,4563.3,0.001]
[1759740266538,2.5774715,4563.4,4563.3,0.001]
[1759740266710,4.6113715,4563.4,4563.3,0.001]
[1759740267219,4.6113715,4563.4,4563.3,0.58994727]
[1759740267697,4.6113715,4563.4,4563.3,0.001]
[1759740268304,4.6113715,4563.4,4563.3,0.58994727]
[1759740269113,0.1096,4563.4,4563.3,0.001]
[1759740269280,2.473,4563.4,4563.3,0.001]
[1759740269802,4.66434855,4563.4,4563.3,0.001]
[1759740270000,2.19134855,4563.4,4563.3,0.001]
[1759740270181,4.66434855,4563.4,4563.3,0.001]
[1759740270594,2.19134855,4563.4,4563.3,0.001]
[1759740270794,4.66434855,4563.4,4563.3,0.001]
[1759740271000,4.66434855,4563.4,4563.3,0.78814831]
[1759740271418,5.10344855,4563.4,4563.3,0.001]
[1759740271617,4.66434855,4563.4,4563.3,0.001]
[1759740272431,4.66434855,4563.4,4563.3,0.78814831]
[1759740274133,5.13434855,4563.4,4563.3,0.78814831]
[1759740274610,4.66434855,4563.4,4563.3,0.78814831]
[1759740275714,4.66634855,4563.4,4563.3,0.78814831]
[1759740278933,5.13634855,4563.4,4563.3,0.78814831]
[1759740279233,5.24594855,4563.4,4563.3,0.78814831]
[1759740279823,2.19154065,4563.0,4562.9,1.18147974]
[1759740280010,5.13454065,4563.0,4562.6,0.001]
[1759740280208,2.19178082,4562.5,4562.3,0.001]
[1759740280420,4.78542886,4562.4,4562.3,0.001]
[1759740280633,5.25542886,4562.4,4562.3,0.001]
[1759740280826,5.84745619,4562.4,4562.3,0.001]
[1759740281130,3.36345619,4562.4,4562.3,0.001]
[1759740281543,5.84745619,4562.4,4562.3,0.001]
[1759740282440,10.25128891,4562.4,4562.3,0.001]
[1759740282933,6.48105619,4562.4,4562.3,0.001]
[1759740284205,3.99705619,4562.4,4562.3,0.001]
[1759740284436,6.48405619,4562.4,4562.3,0.001]
[1759740285113,3.36345619,4562.4,4562.3,0.001]
[1759740285306,2.30142886,4562.4,4562.3,0.001]
[1759740285502,5.25942886,4562.4,4562.3,0.001]
[1759740285706,5.3471496,4562.4,4562.3,0.001]
[1759740285908,4.8771496,4562.4,4562.3,0.001]
[1759740286430,5.3471496,4562.4,4562.3,0.001]
[1759740286741,5.3481496,4562.4,4562.3,0.001]
[1759740288230,2.8591496,4562.4,4562.3,0.001]
[1759740288541,5.3471496,4562.4,4562.3,0.001]
[1759740290726,4.8781496,4562.4,4562.3,0.001]
[1759740291624,4.68082886,4562.4,4562.3,0.001]
[1759740292539,5.15082886,4562.4,4562.3,0.001]
[1759740293244,4.68082886,4562.4,4562.3,0.001]
[1759740294242,2.19182886,4562.4,4562.3,0.001]
[1759740294433,0.002,4563.4,4562.3,0.001]
[1759740294633,0.002,4562.6,4562.3,0.001]
[1759740294835,2.19182886,4562.4,4562.3,0.001]
[1759740295220,2.66182886,4562.4,4562.3,0.001]
[1759740295924,2.19182886,4562.4,4562.3,0.001]
[1759740299035,2.66182886,4562.4,4562.3,0.001]
[1759740299863,2.19182886,4562.4,4562.3,0.001]
[1759740300857,2.19182886,4562.4,4561.7,0.001]
[1759740301154,2.19182886,4562.4,4560.2,1.56491199]
[1759740301155,2.19322294,4559.5,4558.1,2.07288953]
[1759740301354,2.19322294,4559.5,4558.1,0.21197579]
[1759740301355,5.33882294,4559.5,4558.1,0.21197579]
[1759740301589,3.5842532,4559.5,4558.1,0.1024]
[1759740301725,3.5842532,4559.5,4558.4,0.1024]
[1759740301920,5.67982147,4559.5,4558.4,0.1024]
[1759740302352,2.85164109,4559.5,4558.9,1.11086954]
[1759740302567,2.514,4559.5,4559.4,0.1034]
[1759740302741,4.70722294,4559.5,4559.4,0.001]
[1759740304229,2.514,4559.5,4559.4,0.001]
[1759740304470,2.19242294,4559.5,4559.4,0.001]
[1759740304667,4.70642294,4559.5,4559.4,0.001]
[1759740306268,2.19242294,4559.5,4559.4,0.001]
[1759740306464,4.70642294,4559.5,4559.4,0.001]
[1759740307240,2.514,4559.5,4559.4,0.001]
[1759740307565,0.13412897,4559.8,4559.4,0.001]
[1759740307767,2.513,4559.7,4559.4,0.1034]
[1759740307984,4.7061338,4559.7,4559.4,0.001]
[1759740308292,2.513,4559.6,4559.4,0.001]
[1759740308590,2.1931338,4559.7,4559.4,0.001]
[1759740308591,2.30523041,4559.9,4559.4,0.001]
[1759740308794,2.513,4559.8,4559.4,0.1034]
[1759740309089,2.513,4559.7,4559.4,0.1034]
[1759740309264,2.513,4559.6,4559.4,0.001]
[1759740309464,2.514,4559.5,4559.4,0.001]
[1759740309664,4.70722294,4559.5,4559.4,0.001]
[1759740310071,2.514,4559.5,4559.4,0.001]
[1759740311470,4.70722294,4559.5,4559.4,0.001]
[1759740312398,2.514,4559.5,4559.4,0.001]
[1759740312690,4.70722294,4559.5,4559.4,0.001]
[1759740312876,2.514,4559.5,4559.4,0.001]
[1759740313271,2.19313305,4559.7,4559.4,0.001]
[1759740313488,2.19322294,4559.5,4559.4,0.001]
[1759740317072,2.513,4559.6,4559.4,0.001]
[1759740317279,2.19322294,4559.5,4559.4,0.001]
[1759740317668,4.70621555,4559.6,4559.4,0.001]
[1759740318068,2.19322294,4559.5,4559.4,0.001]
[1759740318279,2.513,4559.6,4559.4,0.001]
[1759740318478,2.19322294,4559.5,4559.4,0.001]
[1759740320676,4.70618731,4559.6,4559.4,0.001]
[1759740320880,2.513,4559.6,4559.4,0.001]
[1759740321076,0.4444,4560.5,4559.4,1.46216]
[1759740321276,0.31334401,4560.4,4559.5,0.1096]
[1759740321483,4.90662202,4560.3,4559.5,0.1096]
[1759740321697,0.1096,4560.4,4559.6,0.407516]
[1759740321911,2.511,4560.3,4559.6,0.407516]
[1759740322502,0.1096,4560.4,4559.5,0.1096]
[1759740322675,4.70392194,4560.2,4559.7,14.5]
[1759740322985,2.511,4560.2,4559.7,14.5]
[1759740323594,4.70389742,4560.2,4559.7,14.5]
[1759740323805,2.511,4560.2,4559.7,14.5]
[1759740324001,4.70390197,4560.2,4559.7,14.5]
[1759740324381,2.511,4560.2,4559.7,14.5]
[1759740324909,4.70389772,4560.2,4559.7,14.5]
[1759740325609,2.511,4560.2,4559.7,14.5]
[1759740325898,2.19307864,4559.8,4559.7,14.5]
[1759740326089,5.14647864,4559.8,4559.7,14.5]
[1759740326286,2.9534,4559.8,4559.5,0.1096]
[1759740326475,2.509,4559.8,4559.5,0.1096]
[1759740326675,0.4444,4560.1,4559.6,14.5]
[1759740326886,2.19307943,4559.8,4559.6,14.5]
[1759740327087,2.509,4559.7,4559.6,16.9]
[1759740329087,2.5082,4559.7,4559.6,16.9]
[1759740330276,2.71328068,4559.7,4559.6,16.9]
[1759740332584,0.20508068,4559.7,4559.6,16.9]
[1759740332788,2.507,4559.7,4559.6,18.70366]
[1759740333496,2.507,4559.7,4559.6,18.60126]
[1759740334012,0.002,4560.2,4559.7,2.4]
[1759740334217,2.507,4560.1,4559.7,0.02193126]
[1759740334508,0.20517396,4560.0,4559.7,0.02193126]
[1759740334708,2.507,4559.9,4559.8,14.5]
[1759740335008,2.71217396,4559.9,4559.8,14.5]
[1759740338210,2.507,4559.9,4559.8,14.5]
[1759740338408,0.002,4560.2,4559.9,2.4]
[1759740338619,0.002,4560.2,4560.0,0.02192982]
[1759740338784,0.002,4560.2,4560.1,2.19293436]
[1759740339103,2.508,4560.2,4560.1,2.29533436]
[1759740339410,2.508,4560.2,4560.1,2.19293436]
[1759740339615,2.508,4560.2,4560.1,4.36142617]
[1759740340996,2.508,4560.2,4560.1,2.19293436]
[1759740341209,2.508,4560.2,4560.1,16.69293436]
[1759740342120,2.508,4560.2,4560.1,14.5]
[1759740345209,2.506,4560.2,4560.1,14.5]
[1759740345545,2.506,4560.2,4560.1,16.79533436]
[1759740345698,0.002,4560.2,4560.1,16.79533436]
[1759740345891,2.506,4560.2,4560.1,16.79533436]
[1759740346097,2.506,4560.2,4560.1,18.93416853]
[1759740346313,0.002,4560.2,4560.1,18.93416853]
[1759740346515,2.505,4560.2,4560.1,18.93416853]
[1759740347120,2.505,4560.2,4560.1,18.83176853]
[1759740347315,0.002,4560.2,4560.1,18.83176853]
[1759740347515,2.505,4560.2,4560.1,21.33416853]
[1759740348626,2.505,4560.2,4560.1,21.44376853]
[1759740349197,0.002,4560.2,4560.1,21.44376853]
[1759740350400,0.002,4560.2,4560.1,21.34136853]
[1759740350627,0.002,4560.2,4560.1,19.14843417]
[1759740351204,0.002,4560.2,4560.1,17.0096]
[1759740351402,0.442,4560.2,4560.1,17.0096]
[1759740352953,0.442,4560.2,4560.1,14.6096]
[1759740353523,0.4412,4560.2,4560.1,14.6096]
[1759740355028,0.4412,4560.2,4560.1,14.5]
[1759740357233,0.4412,4560.2,4559.8,0.1096]
[1759740357403,0.0012,4560.2,4559.8,0.1096]
[1759740357605,0.0012,4560.2,4560.1,0.1096]
[1759740357606,0.4412,4560.2,4560.1,0.1096]
[1759740357828,1.5322,4560.2,4560.1,0.1096]
[1759740362714,2.5012,4560.2,4560.1,0.1096]
[1759740363115,0.0012,4560.2,4560.1,2.30253436]
[1759740363329,2.5002,4560.2,4560.1,2.30253436]
[1759740363551,0.0012,4560.2,4560.1,2.76232979]
[1759740363857,2.5002,4560.2,4560.1,2.76232979]
[1759740364058,0.0012,4560.2,4560.1,2.76232979]
[1759740364268,2.5022,4560.2,4560.1,2.76232979]
[1759740364434,2.5012,4560.2,4560.1,2.76232979]
[1759740364634,2.5012,4560.2,4560.1,5.16232979]
[1759740364869,0.0012,4560.2,4560.1,5.16232979]
[1759740365172,2.5012,4560.2,4560.1,5.16232979]
[1759740365368,0.0012,4560.2,4560.1,5.16232979]
[1759740365537,2.5012,4560.2,4560.1,5.16232979]
[1759740366043,0.0012,4560.2,4560.1,5.16232979]
[1759740366244,2.5012,4560.2,4560.1,5.16232979]
[1759740369080,2.5012,4560.2,4560.1,2.96939543]
[1759740369286,2.5012,4560.2,4560.1,2.5096]
[1759740370170,2.5002,4560.2,4560.1,2.5096]
[1759740370981,2.5002,4560.2,4560.1,4.70253436]
[1759740371890,2.4992,4560.2,4560.1,4.70253436]
[1759740372083,0.0012,4560.2,4560.1,4.70253436]
[1759740372283,2.4992,4560.2,4560.1,4.70253436]
[1759740372493,2.4992,4560.2,4560.1,5.402328]
[1759740372669,0.0012,4560.2,4560.1,5.402328]
[1759740372892,2.4992,4560.2,4560.1,5.402328]
[1759740373998,0.0012,4560.2,4560.1,5.402328]
[1759740374199,2.4992,4560.2,4560.1,5.402328]
[1759740374709,0.0012,4560.2,4560.1,5.402328]
[1759740374907,2.4992,4560.2,4560.1,5.402328]
[1759740375814,0.0012,4560.2,4560.1,5.402328]
[1759740376122,2.4982,4560.2,4560.1,3.20939364]
[1759740376883,2.4982,4560.2,4560.1,5.402328]
[1759740377803,0.0012,4560.2,4560.1,5.402328]
[1759740377974,2.4974,4560.2,4560.1,5.402328]
[1759740379712,0.0004,4560.2,4560.1,5.402328]
[1759740380097,2.4964,4560.2,4560.1,5.402328]
[1759740381008,2.4964,4560.2,4560.1,5.403328]
[1759740381614,2.4964,4560.2,4560.1,17.71039364]
[1759740383589,2.9656,4560.2,4560.1,17.71039364]
[1759740383989,0.4696,4560.2,4560.1,17.71039364]
[1759740384209,2.9646,4560.2,4560.1,17.71039364]
[1759740385018,0.4696,4560.2,4560.1,17.71039364]
[1759740385219,2.4954,4560.2,4560.1,17.71039364]
[1759740385419,2.4954,4560.2,4560.1,19.903328]
[1759740385890,2.4954,4560.2,4560.1,17.71039364]
[1759740386223,2.4954,4560.2,4560.1,19.903328]
[1759740386418,2.4954,4560.2,4560.1,17.71039364]
[1759740388218,2.4944,4560.2,4560.1,19.903328]
[1759740388410,2.4944,4560.2,4560.1,17.71039364]
[1759740389420,2.4944,4560.2,4560.1,17.0106]
[1759740390705,0.0004,4560.2,4560.1,17.0106]
[1759740390907,2.4944,4560.2,4560.1,17.0106]
[1759740391292,2.4934,4560.2,4560.1,17.0106]
[1759740392318,2.4934,4560.2,4560.1,19.20353436]
[1759740392319,0.0004,4560.2,4560.1,19.20353436]
[1759740392520,2.4934,4560.2,4560.1,19.20353436]
[1759740392818,0.0004,4560.2,4560.1,21.34318804]
[1759740392990,2.4934,4560.2,4560.1,21.80163516]
[1759740393423,0.0004,4560.2,4560.1,21.80163516]
[1759740393621,2.4934,4560.2,4560.1,21.80163516]
[1759740395934,2.4934,4560.2,4560.1,21.69923516]
[1759740399030,0.0004,4560.2,4560.1,21.69923516]
[1759740399933,0.0004,4560.2,4560.1,21.80163516]
[1759740400511,0.0004,4560.2,4560.1,21.69923516]
[1759740402638,2.4906,4560.5,4560.4,2.1927901]
[1759740402833,2.4906,4560.5,4560.4,1.73906966]